[Event "*** MasterClass Titled Tuesday Blitz"]
[Site "Chess.com"]
[Date "2017.12.05"]
[Round "7"]
[White "johannesh"]
[Black "saikrishnaReturns"]
[Result "1/2-1/2"]
[WhiteElo "2298"]
[BlackElo "2419"]
[TimeControl "180+2"]
[EndTime "15:47:29 PST"]
[Termination "Game drawn - insufficient material"]

1. e4 {[%clk 0:03:01.9]} 1... e5 {[%clk 0:02:59.6]} 2. Nf3 {[%clk 0:03:02.4]}
2... Nc6 {[%clk 0:03:01.5]} 3. Bb5 {[%clk 0:03:02.5]} 3... a6 {[%clk 0:03:03]}
4. Ba4 {[%clk 0:03:02.3]} 4... d6 {[%clk 0:03:04.9]} 5. O-O {[%clk 0:02:59.4]}
5... Nf6 {[%clk 0:03:05.2]} 6. d4 {[%clk 0:02:56.5]} 6... b5 {[%clk 0:03:05.3]}
7. Bb3 {[%clk 0:02:55.8]} 7... Nxd4 {[%clk 0:03:05.9]} 8. Nxd4 {[%clk
0:02:38.8]} 8... exd4 {[%clk 0:03:07.8]} 9. Bd5 {[%clk 0:02:39.8]} 9... Nxd5
{[%clk 0:03:04.4]} 10. exd5 {[%clk 0:02:41.6]} 10... Be7 {[%clk 0:03:05.1]} 11.
Qxd4 {[%clk 0:02:36]} 11... O-O {[%clk 0:03:05.8]} 12. a4 {[%clk 0:02:36.4]}
12... Bf6 {[%clk 0:03:02.7]} 13. Qd3 {[%clk 0:02:25.8]} 13... Bd7 {[%clk
0:02:57.9]} 14. Nc3 {[%clk 0:02:19.2]} 14... Bxc3 {[%clk 0:02:54.8]} 15. Qxc3
{[%clk 0:02:14.6]} 15... bxa4 {[%clk 0:02:56.1]} 16. Be3 {[%clk 0:02:10.9]}
16... Rb8 {[%clk 0:02:51.7]} 17. Rfe1 {[%clk 0:02:07.4]} 17... Rb5 {[%clk
0:02:49.7]} 18. Rxa4 {[%clk 0:02:00.3]} 18... Rxd5 {[%clk 0:02:49.3]} 19. Rxa6
{[%clk 0:02:01.1]} 19... Re8 {[%clk 0:02:46.7]} 20. Raa1 {[%clk 0:01:52.8]}
20... Rde5 {[%clk 0:02:28.7]} 21. Bd4 {[%clk 0:01:49.7]} 21... Rxe1+ {[%clk
0:02:27.9]} 22. Rxe1 {[%clk 0:01:51.6]} 22... Rxe1+ {[%clk 0:02:28.8]} 23. Qxe1
{[%clk 0:01:52.1]} 23... c5 {[%clk 0:02:29.1]} 24. Bc3 {[%clk 0:01:49.6]} 24...
Bc6 {[%clk 0:02:29.7]} 25. b4 {[%clk 0:01:44.5]} 25... Qg5 {[%clk 0:02:23.6]}
26. f3 {[%clk 0:01:41.8]} 26... h5 {[%clk 0:02:18.8]} 27. Qd2 {[%clk 0:01:35.8]}
27... Qg6 {[%clk 0:02:13]} 28. Qd3 {[%clk 0:01:36.1]} 28... Qe6 {[%clk
0:01:55.4]} 29. bxc5 {[%clk 0:01:17.9]} 29... dxc5 {[%clk 0:01:57.3]} 30. Qd8+
{[%clk 0:01:08.9]} 30... Kh7 {[%clk 0:01:55.4]} 31. Qg5 {[%clk 0:01:09.4]} 31...
Qg6 {[%clk 0:01:48.9]} 32. Qxg6+ {[%clk 0:01:09.4]} 32... Kxg6 {[%clk 0:01:49]}
33. Kf2 {[%clk 0:01:08.8]} 33... Ba4 {[%clk 0:01:49.2]} 34. h4 {[%clk
0:00:52.7]} 34... Bxc2 {[%clk 0:01:49.4]} 35. g3 {[%clk 0:00:53.4]} 35... f6
{[%clk 0:01:45.3]} 36. Ke3 {[%clk 0:00:51.9]} 36... Kf5 {[%clk 0:01:45.5]} 37.
Ba5 {[%clk 0:00:46.3]} 37... Ke5 {[%clk 0:01:38.9]} 38. Bd8 {[%clk 0:00:45.8]}
38... Bd1 {[%clk 0:01:36.2]} 39. Be7 {[%clk 0:00:43.8]} 39... c4 {[%clk
0:01:37.3]} 40. Bb4 {[%clk 0:00:44]} 40... Kd5 {[%clk 0:01:34]} 41. Bc3 {[%clk
0:00:43.7]} 41... Kc5 {[%clk 0:01:34.5]} 42. f4 {[%clk 0:00:44.3]} 42... Kd5
{[%clk 0:01:34.9]} 43. Bd4 {[%clk 0:00:44.7]} 43... Ke6 {[%clk 0:01:33.1]} 44.
Bc3 {[%clk 0:00:44.8]} 44... Kf5 {[%clk 0:01:34.2]} 45. Bd4 {[%clk 0:00:43.8]}
45... Ba4 {[%clk 0:01:31.8]} 46. Bc3 {[%clk 0:00:44.1]} 46... Bd7 {[%clk
0:01:32.2]} 47. Bd4 {[%clk 0:00:44.4]} 47... Be6 {[%clk 0:01:33]} 48. Bc3 {[%clk
0:00:45.2]} 48... Bf7 {[%clk 0:01:33.5]} 49. Bd4 {[%clk 0:00:44.3]} 49... Ke6
{[%clk 0:01:34.5]} 50. Bc3 {[%clk 0:00:44.5]} 50... Kd5 {[%clk 0:01:35.8]} 51.
Bd4 {[%clk 0:00:45.8]} 51... Bg6 {[%clk 0:01:33.4]} 52. Bc3 {[%clk 0:00:46.6]}
52... Kc5 {[%clk 0:01:33.5]} 53. Kf2 {[%clk 0:00:45.9]} 53... Kb5 {[%clk
0:01:32.5]} 54. Ke3 {[%clk 0:00:47]} 54... Ka4 {[%clk 0:01:33.8]} 55. Kd2 {[%clk
0:00:47.6]} 55... Kb3 {[%clk 0:01:35]} 56. Bd4 {[%clk 0:00:48.3]} 56... Bf5
{[%clk 0:01:33.5]} 57. Bc3 {[%clk 0:00:48.4]} 57... Be4 {[%clk 0:01:34.5]} 58.
Bd4 {[%clk 0:00:48.4]} 58... Kb4 {[%clk 0:01:33.9]} 59. Bc3+ {[%clk 0:00:49.1]}
59... Kc5 {[%clk 0:01:35.2]} 60. Ke3 {[%clk 0:00:50.1]} 60... Bc6 {[%clk
0:01:36]} 61. Bd4+ {[%clk 0:00:50.5]} 61... Kd5 {[%clk 0:01:37.4]} 62. Bc3
{[%clk 0:00:49.7]} 62... Ke6 {[%clk 0:01:38.6]} 63. Bd4 {[%clk 0:00:49.7]} 63...
Kf5 {[%clk 0:01:39.9]} 64. Bc3 {[%clk 0:00:50.7]} 64... Kg4 {[%clk 0:01:40.4]}
65. Kf2 {[%clk 0:00:51.1]} 65... Kh3 {[%clk 0:01:38.4]} 66. Bd4 {[%clk
0:00:51.5]} 66... Kh2 {[%clk 0:01:36.7]} 67. Bc3 {[%clk 0:00:52.2]} 67... Kh1
{[%clk 0:01:37.9]} 68. Bd4 {[%clk 0:00:38.6]} 68... Kh2 {[%clk 0:01:38.8]} 69.
Bc3 {[%clk 0:00:39]} 69... Kh3 {[%clk 0:01:40.1]} 70. Bd4 {[%clk 0:00:40.1]}
70... Kg4 {[%clk 0:01:41.5]} 71. Bc3 {[%clk 0:00:40.7]} 71... Kf5 {[%clk
0:01:42.8]} 72. Ke3 {[%clk 0:00:41.3]} 72... g5 {[%clk 0:01:43.6]} 73. fxg5
{[%clk 0:00:41.8]} 73... fxg5 {[%clk 0:01:44.7]} 74. hxg5 {[%clk 0:00:42.5]}
74... Kxg5 {[%clk 0:01:45.9]} 75. Bd4 {[%clk 0:00:43.4]} 75... Kg4 {[%clk
0:01:47]} 76. Kf2 {[%clk 0:00:44.1]} 76... Kf5 {[%clk 0:01:48.5]} 77. Ke3 {[%clk
0:00:44.9]} 77... Bd7 {[%clk 0:01:49.9]} 78. Bc3 {[%clk 0:00:45.3]} 78... Ke6
{[%clk 0:01:51.3]} 79. Bd4 {[%clk 0:00:45.8]} 79... Kd5 {[%clk 0:01:52.4]} 80.
Bc3 {[%clk 0:00:47]} 80... Kc5 {[%clk 0:01:53.8]} 81. Bd4+ {[%clk 0:00:48.1]}
81... Kb4 {[%clk 0:01:54.7]} 82. Kd2 {[%clk 0:00:49.2]} 82... Be6 {[%clk
0:01:52.7]} 83. Bc3+ {[%clk 0:00:48.6]} 83... Kb3 {[%clk 0:01:54]} 84. Bd4
{[%clk 0:00:49.3]} 84... Ka2 {[%clk 0:01:55.4]} 85. Kc3 {[%clk 0:00:44.2]} 85...
Kb1 {[%clk 0:01:55.5]} 86. Be5 {[%clk 0:00:43.6]} 86... Kc1 {[%clk 0:01:56.1]}
87. Bb8 {[%clk 0:00:44.2]} 87... Kd1 {[%clk 0:01:56.8]} 88. Bc7 {[%clk
0:00:45.5]} 88... Ke2 {[%clk 0:01:58]} 89. Bb8 {[%clk 0:00:46.8]} 89... Kf3
{[%clk 0:01:59.3]} 90. Bc7 {[%clk 0:00:45.7]} 90... Ke4 {[%clk 0:02:00.3]} 91.
Bb8 {[%clk 0:00:46.5]} 91... Kd5 {[%clk 0:02:01.5]} 92. Bc7 {[%clk 0:00:47.2]}
92... Kc6 {[%clk 0:02:02.8]} 93. Bf4 {[%clk 0:00:47.5]} 93... Kd7 {[%clk
0:02:03.8]} 94. Be5 {[%clk 0:00:47.6]} 94... Ke7 {[%clk 0:02:04.5]} 95. Bf4
{[%clk 0:00:47.8]} 95... Kf7 {[%clk 0:02:05.8]} 96. Bb8 {[%clk 0:00:48.3]} 96...
Kf6 {[%clk 0:02:07]} 97. Bc7 {[%clk 0:00:49.2]} 97... Kf5 {[%clk 0:02:08.4]} 98.
Bb8 {[%clk 0:00:50.2]} 98... Kg4 {[%clk 0:02:09.1]} 99. Bc7 {[%clk 0:00:51.1]}
99... Bd5 {[%clk 0:02:10.3]} 100. Bb8 {[%clk 0:00:51.1]} 100... Be4 {[%clk
0:02:11.4]} 101. Kxc4 {[%clk 0:00:46]} 101... Bd3+ {[%clk 0:02:12.3]} 102. Kxd3
{[%clk 0:00:42.7]} 102... Kh3 {[%clk 0:02:11.9]} 103. Ke4 {[%clk 0:00:33]}
103... Kg4 {[%clk 0:02:13.1]} 104. Ke3 {[%clk 0:00:31.6]} 104... h4 {[%clk
0:02:07.6]} 105. Kf2 {[%clk 0:00:29.3]} 105... hxg3+ {[%clk 0:02:08.3]} 106. Kg2
{[%clk 0:00:26.5]} 106... Kf5 {[%clk 0:02:05.8]} 107. Bxg3 {[%clk 0:00:28.3]}
1/2-1/2

[Event "*** MasterClass Titled Tuesday Blitz"]
[Site "Chess.com"]
[Date "2017.12.05"]
[Round "7"]
[White "ChessQueen"]
[Black "chidori_boruto"]
[Result "1-0"]
[WhiteElo "2606"]
[BlackElo "2526"]
[TimeControl "180+2"]
[EndTime "15:47:39 PST"]
[Termination "ChessQueen won on time"]

1. e4 {[%clk 0:03:00.9]} 1... c6 {[%clk 0:03:00.8]} 2. Nf3 {[%clk 0:03:01.2]}
2... d5 {[%clk 0:03:01.7]} 3. Nc3 {[%clk 0:03:02.9]} 3... Bg4 {[%clk 0:03:01.6]}
4. Be2 {[%clk 0:03:03]} 4... Nf6 {[%clk 0:02:55.8]} 5. h3 {[%clk 0:02:48.4]}
5... Bxf3 {[%clk 0:02:51.2]} 6. Bxf3 {[%clk 0:02:49.2]} 6... d4 {[%clk
0:02:49.7]} 7. Ne2 {[%clk 0:02:49.2]} 7... d3 {[%clk 0:02:50]} 8. Ng3 {[%clk
0:02:29.4]} 8... Na6 {[%clk 0:02:45.8]} 9. O-O {[%clk 0:02:26.7]} 9... e6 {[%clk
0:02:38.6]} 10. cxd3 {[%clk 0:02:17.1]} 10... Nc5 {[%clk 0:02:35.6]} 11. e5
{[%clk 0:01:59.3]} 11... Ng8 {[%clk 0:02:32.7]} 12. d4 {[%clk 0:01:29.3]} 12...
Qxd4 {[%clk 0:02:32.8]} 13. Ne2 {[%clk 0:01:30.3]} 13... Qd3 {[%clk 0:02:26.4]}
14. b4 {[%clk 0:01:27.8]} 14... Nd7 {[%clk 0:02:23.6]} 15. Bb2 {[%clk
0:01:01.4]} 15... Bxb4 {[%clk 0:02:23.5]} 16. Ng3 {[%clk 0:01:02.4]} 16... Ne7
{[%clk 0:02:18.1]} 17. Ne4 {[%clk 0:01:00.3]} 17... Nf5 {[%clk 0:02:13.8]} 18.
Re1 {[%clk 0:00:46.7]} 18... O-O {[%clk 0:02:13.2]} 19. Qb3 {[%clk 0:00:33.5]}
19... Qxb3 {[%clk 0:02:06]} 20. axb3 {[%clk 0:00:34.5]} 20... Rfd8 {[%clk
0:02:04.4]} 21. Rec1 {[%clk 0:00:30.9]} 21... Nh4 {[%clk 0:01:55.2]} 22. Be2
{[%clk 0:00:28.1]} 22... Ng6 {[%clk 0:01:52.5]} 23. d4 {[%clk 0:00:28.3]} 23...
Nb6 {[%clk 0:01:53]} 24. g3 {[%clk 0:00:28]} 24... Ne7 {[%clk 0:01:50.3]} 25.
Kg2 {[%clk 0:00:27.8]} 25... Nf5 {[%clk 0:01:50.8]} 26. Rd1 {[%clk 0:00:27.7]}
26... h5 {[%clk 0:01:49.2]} 27. Bxh5 {[%clk 0:00:27.4]} 27... g6 {[%clk
0:01:48.9]} 28. Be2 {[%clk 0:00:28]} 28... Kg7 {[%clk 0:01:49.9]} 29. g4 {[%clk
0:00:28.8]} 29... Ne7 {[%clk 0:01:48.6]} 30. h4 {[%clk 0:00:24]} 30... Ned5
{[%clk 0:01:49.4]} 31. Kg3 {[%clk 0:00:24.4]} 31... Rh8 {[%clk 0:01:50]} 32. Rh1
{[%clk 0:00:25.4]} 32... Be7 {[%clk 0:01:49.9]} 33. h5 {[%clk 0:00:19]} 33... a6
{[%clk 0:01:41.6]} 34. hxg6 {[%clk 0:00:18]} 34... fxg6 {[%clk 0:01:42.2]} 35.
Rxh8 {[%clk 0:00:11.5]} 35... Rxh8 {[%clk 0:01:44.1]} 36. Bc1 {[%clk 0:00:12.4]}
36... Rh1 {[%clk 0:01:39.3]} 37. Bb2 {[%clk 0:00:11]} 37... Rh8 {[%clk
0:01:35.3]} 38. Bc1 {[%clk 0:00:12]} 38... Rh1 {[%clk 0:01:34.9]} 39. Bb2 {[%clk
0:00:13.1]} 39... Rxa1 {[%clk 0:01:29.7]} 40. Bxa1 {[%clk 0:00:13.7]} 40... Nd7
{[%clk 0:01:30.2]} 41. f4 {[%clk 0:00:14.2]} 41... c5 {[%clk 0:01:24.8]} 42.
dxc5 {[%clk 0:00:14.8]} 42... Nxc5 {[%clk 0:01:26.7]} 43. Nxc5 {[%clk
0:00:15.9]} 43... Bxc5 {[%clk 0:01:28.6]} 44. Bb2 {[%clk 0:00:16.2]} 44... Be3
{[%clk 0:01:23.6]} 45. f5 {[%clk 0:00:17.5]} 45... gxf5 {[%clk 0:01:23.4]} 46.
gxf5 {[%clk 0:00:19]} 46... exf5 {[%clk 0:01:23.3]} 47. Bf3 {[%clk 0:00:20.6]}
47... Bf4+ {[%clk 0:01:22.5]} 48. Kh4 {[%clk 0:00:15.8]} 48... Nb4 {[%clk
0:01:19.1]} 49. e6+ {[%clk 0:00:16.9]} 49... Kf8 {[%clk 0:01:15.6]} 50. Ba3
{[%clk 0:00:16.1]} 50... a5 {[%clk 0:01:14.9]} 51. Bxb7 {[%clk 0:00:16.5]} 51...
Ke7 {[%clk 0:01:15.6]} 52. Bc8 {[%clk 0:00:16.6]} 52... Kf6 {[%clk 0:01:14.2]}
53. Bb2+ {[%clk 0:00:16.3]} 53... Ke7 {[%clk 0:01:13.9]} 54. Kh5 {[%clk
0:00:16.7]} 54... Bd6 {[%clk 0:01:02.3]} 55. Kg6 {[%clk 0:00:15.8]} 55... f4
{[%clk 0:00:56.5]} 56. Bf6+ {[%clk 0:00:15.9]} 56... Kf8 {[%clk 0:00:56.2]} 57.
Bg7+ {[%clk 0:00:16.5]} 57... Ke7 {[%clk 0:00:55.3]} 58. Bf6+ {[%clk 0:00:17.3]}
58... Kf8 {[%clk 0:00:56.6]} 59. Bb7 {[%clk 0:00:18.3]} 59... Nd3 {[%clk
0:00:47.3]} 60. Kf5 {[%clk 0:00:19.1]} 60... Nc5 {[%clk 0:00:44.4]} 61. Bd5
{[%clk 0:00:20.1]} 61... f3 {[%clk 0:00:44.9]} 62. Bd4 {[%clk 0:00:13.4]} 62...
Ke7 {[%clk 0:00:37.7]} 63. Bf2 {[%clk 0:00:14.3]} 63... Kf8 {[%clk 0:00:33.5]}
64. Bh4 {[%clk 0:00:12.3]} 64... Nd3 {[%clk 0:00:20.4]} 65. Bxf3 {[%clk
0:00:12.1]} 65... Nc5 {[%clk 0:00:19.1]} 66. Bd5 {[%clk 0:00:13]} 66... a4
{[%clk 0:00:20.4]} 67. b4 {[%clk 0:00:13.5]} 67... Na6 {[%clk 0:00:19.8]} 68. b5
{[%clk 0:00:14.3]} 68... Nc7 {[%clk 0:00:21]} 69. Bc4 {[%clk 0:00:13.1]} 69...
Na8 {[%clk 0:00:22]} 70. Bf2 {[%clk 0:00:13.2]} 70... a3 {[%clk 0:00:22.4]} 71.
b6 {[%clk 0:00:13.8]} 71... Nxb6 {[%clk 0:00:20.8]} 72. Bxb6 {[%clk 0:00:13.6]}
72... Bb4 {[%clk 0:00:19.9]} 73. Bd4 {[%clk 0:00:14.2]} 73... Bd2 {[%clk
0:00:18.7]} 74. Bf6 {[%clk 0:00:15]} 74... Bb4 {[%clk 0:00:18.6]} 75. Ke4 {[%clk
0:00:15.8]} 75... Bd2 {[%clk 0:00:16.2]} 76. Kd5 {[%clk 0:00:16.8]} 76... Bc1
{[%clk 0:00:14.1]} 77. Kc6 {[%clk 0:00:17.5]} 77... Bb2 {[%clk 0:00:14.7]} 78.
Bh4 {[%clk 0:00:13.3]} 78... Bc3 {[%clk 0:00:15]} 79. Kd7 {[%clk 0:00:13.9]}
79... Bb4 {[%clk 0:00:16.4]} 80. e7+ {[%clk 0:00:14.9]} 80... Bxe7 {[%clk
0:00:17.6]} 81. Bxe7+ {[%clk 0:00:15.9]} 81... Kg7 {[%clk 0:00:19]} 82. Bxa3
{[%clk 0:00:16.7]} 82... Kf6 {[%clk 0:00:20.2]} 83. Kd6 {[%clk 0:00:17.8]} 1-0

[Event "*** MasterClass Titled Tuesday Blitz"]
[Site "Chess.com"]
[Date "2017.12.05"]
[Round "7"]
[White "igorkovalenko"]
[Black "JoachimBN"]
[Result "0-1"]
[WhiteElo "2703"]
[BlackElo "2552"]
[TimeControl "180+2"]
[EndTime "15:47:52 PST"]
[Termination "JoachimBN won by resignation"]

1. e4 {[%clk 0:02:52.4]} 1... g6 {[%clk 0:02:59.8]} 2. d4 {[%clk 0:02:53.1]}
2... Bg7 {[%clk 0:02:59.1]} 3. Nf3 {[%clk 0:02:53.7]} 3... c5 {[%clk 0:02:58.7]}
4. d5 {[%clk 0:02:54.5]} 4... d6 {[%clk 0:02:48.1]} 5. c4 {[%clk 0:02:55.2]}
5... Bg4 {[%clk 0:02:31.6]} 6. Be2 {[%clk 0:02:55.2]} 6... Qb6 {[%clk
0:02:30.1]} 7. Nc3 {[%clk 0:02:54.9]} 7... Bxc3+ {[%clk 0:02:21.4]} 8. bxc3
{[%clk 0:02:56.8]} 8... Nd7 {[%clk 0:02:23.3]} 9. O-O {[%clk 0:02:57]} 9... Ngf6
{[%clk 0:02:21.6]} 10. Qc2 {[%clk 0:02:56.7]} 10... O-O {[%clk 0:02:23]} 11. h3
{[%clk 0:02:56.7]} 11... Bxf3 {[%clk 0:02:21.2]} 12. Bxf3 {[%clk 0:02:58.6]}
12... Qa6 {[%clk 0:02:22.6]} 13. Be2 {[%clk 0:02:59.2]} 13... Nb6 {[%clk
0:02:19.8]} 14. a4 {[%clk 0:02:59.2]} 14... Nbd7 {[%clk 0:02:07]} 15. f4 {[%clk
0:02:50.9]} 15... Rae8 {[%clk 0:01:56.1]} 16. Bd3 {[%clk 0:02:52]} 16... Nh5
{[%clk 0:01:45]} 17. g4 {[%clk 0:02:51.2]} 17... Ng7 {[%clk 0:01:46.1]} 18. Bd2
{[%clk 0:02:47.3]} 18... Qa5 {[%clk 0:01:40.6]} 19. Kg2 {[%clk 0:02:42.1]} 19...
e6 {[%clk 0:01:37.6]} 20. Qb3 {[%clk 0:02:31.1]} 20... Qc7 {[%clk 0:01:33.9]}
21. Rae1 {[%clk 0:02:28.6]} 21... h5 {[%clk 0:01:28.7]} 22. Rb1 {[%clk
0:02:28.1]} 22... b6 {[%clk 0:01:27.2]} 23. Rbe1 {[%clk 0:02:29.1]} 23... Re7
{[%clk 0:01:22.4]} 24. Re2 {[%clk 0:02:22]} 24... hxg4 {[%clk 0:01:21.2]} 25.
hxg4 {[%clk 0:02:22.9]} 25... Nf6 {[%clk 0:01:22.7]} 26. Kf3 {[%clk 0:02:19.8]}
26... exd5 {[%clk 0:01:18.2]} 27. cxd5 {[%clk 0:02:20]} 27... Rfe8 {[%clk
0:01:18.6]} 28. c4 {[%clk 0:02:19]} 28... Qc8 {[%clk 0:01:15.2]} 29. Rg1 {[%clk
0:02:20]} 29... g5 {[%clk 0:01:07.7]} 30. f5 {[%clk 0:02:18.6]} 30... Nd7 {[%clk
0:01:06.2]} 31. Bxg5 {[%clk 0:02:19.2]} 31... f6 {[%clk 0:01:03.5]} 32. Bf4
{[%clk 0:02:19.7]} 32... Ne5+ {[%clk 0:01:04.6]} 33. Kf2 {[%clk 0:02:18.6]}
33... Kf7 {[%clk 0:01:03.7]} 34. Re3 {[%clk 0:02:15.4]} 34... Rh8 {[%clk
0:01:02.6]} 35. Be2 {[%clk 0:02:16.8]} 35... Rh4 {[%clk 0:01:01.4]} 36. Rh3
{[%clk 0:02:17.8]} 36... Qh8 {[%clk 0:00:57.6]} 37. Rgh1 {[%clk 0:02:18.8]}
37... Rxh3 {[%clk 0:00:53.8]} 38. Rxh3 {[%clk 0:02:19.6]} 38... Qg8 {[%clk
0:00:55.1]} 39. Rh6 {[%clk 0:02:19.2]} 39... Nd7 {[%clk 0:00:52.5]} 40. Bxd6
{[%clk 0:02:18.8]} 40... Rxe4 {[%clk 0:00:46.3]} 41. Bf3 {[%clk 0:02:13.9]}
41... Rd4 {[%clk 0:00:42.6]} 42. Qe3 {[%clk 0:02:12.4]} 42... Qe8 {[%clk
0:00:40.8]} 43. Qxe8+ {[%clk 0:02:12.3]} 43... Nxe8 {[%clk 0:00:41.3]} 44. Rh7+
{[%clk 0:02:10.4]} 44... Ng7 {[%clk 0:00:42.5]} 45. Be2 {[%clk 0:02:09.2]} 45...
Kg8 {[%clk 0:00:40.5]} 46. Rh6 {[%clk 0:02:08.9]} 46... Ne8 {[%clk 0:00:41.2]}
47. Bg3 {[%clk 0:02:09.2]} 47... Kg7 {[%clk 0:00:41.2]} 48. Rh1 {[%clk
0:02:01.7]} 48... Ne5 {[%clk 0:00:39.3]} 49. Bxe5 {[%clk 0:02:02.4]} 49... fxe5
{[%clk 0:00:41.2]} 50. g5 {[%clk 0:02:03.6]} 50... Nd6 {[%clk 0:00:31.9]} 51.
f6+ {[%clk 0:02:04.5]} 51... Kg6 {[%clk 0:00:31.3]} 52. Rg1 {[%clk 0:02:00.9]}
52... Rf4+ {[%clk 0:00:32.3]} 53. Ke1 {[%clk 0:01:58.4]} 53... Nf7 {[%clk
0:00:28.1]} 54. Bd3+ {[%clk 0:01:54.4]} 54... e4 {[%clk 0:00:27.8]} 55. Bc2
{[%clk 0:01:55.6]} 55... Nxg5 {[%clk 0:00:24.1]} 56. f7 {[%clk 0:01:56.9]} 56...
Rxf7 {[%clk 0:00:23.1]} 57. Bxe4+ {[%clk 0:01:58]} 57... Kf6 {[%clk 0:00:24.7]}
58. Bg2 {[%clk 0:01:57.9]} 58... Ke5 {[%clk 0:00:22.2]} 59. Ke2 {[%clk
0:01:48.3]} 59... Rf4 {[%clk 0:00:19.9]} 60. Bh1 {[%clk 0:01:38.9]} 60... Nf7
{[%clk 0:00:19.1]} 61. Kd3 {[%clk 0:01:36.6]} 61... Rd4+ {[%clk 0:00:17.5]} 62.
Kc3 {[%clk 0:01:37.5]} 62... Nd6 {[%clk 0:00:19.4]} 63. Re1+ {[%clk 0:01:35.2]}
63... Kf4 {[%clk 0:00:20.5]} 64. Rf1+ {[%clk 0:01:26.1]} 64... Ke5 {[%clk
0:00:19]} 65. Re1+ {[%clk 0:01:27]} 65... Kf5 {[%clk 0:00:15.9]} 66. a5 {[%clk
0:01:07.1]} 66... Rxc4+ {[%clk 0:00:14.4]} 67. Kb3 {[%clk 0:01:08.5]} 67... Rb4+
{[%clk 0:00:14.9]} 68. Kc2 {[%clk 0:01:09]} 68... bxa5 {[%clk 0:00:14.1]} 69.
Re6 {[%clk 0:01:09.7]} 69... Rb6 {[%clk 0:00:15.2]} 70. Bg2 {[%clk 0:01:04.8]}
70... a4 {[%clk 0:00:14.1]} 71. Re7 {[%clk 0:00:59]} 71... a6 {[%clk 0:00:13.6]}
72. Bh3+ {[%clk 0:00:57.1]} 72... Kf4 {[%clk 0:00:14.4]} 73. Re1 {[%clk
0:00:50.4]} 73... Nb5 {[%clk 0:00:11.6]} 74. Ra1 {[%clk 0:00:49.6]} 74... a3
{[%clk 0:00:12.3]} 75. Bf1 {[%clk 0:00:49.7]} 75... Ke5 {[%clk 0:00:13.1]} 76.
Bc4 {[%clk 0:00:50.4]} 76... Kd4 {[%clk 0:00:11]} 77. Ba2 {[%clk 0:00:38.8]}
77... c4 {[%clk 0:00:11.6]} 78. Rd1+ {[%clk 0:00:34.9]} 78... Kc5 {[%clk
0:00:12.7]} 79. Rh1 {[%clk 0:00:34.7]} 79... Nd4+ {[%clk 0:00:12.4]} 80. Kc3
{[%clk 0:00:35.2]} 80... Ne2+ {[%clk 0:00:13.5]} 81. Kd2 {[%clk 0:00:33]} 81...
Rb2+ {[%clk 0:00:14.9]} 82. Ke3 {[%clk 0:00:33.8]} 82... Rxa2 {[%clk 0:00:16.1]}
83. d6 {[%clk 0:00:35.4]} 83... Kxd6 {[%clk 0:00:16.8]} 84. Rh6+ {[%clk
0:00:36.6]} 84... Kc5 {[%clk 0:00:16.2]} 85. Rxa6 {[%clk 0:00:38.5]} 85... Nc3
{[%clk 0:00:16.5]} 86. Ra5+ {[%clk 0:00:36.2]} 86... Kb4 {[%clk 0:00:17.3]} 87.
Ra8 {[%clk 0:00:38.1]} 87... Re2+ {[%clk 0:00:17.9]} 88. Kd4 {[%clk 0:00:39.6]}
88... Rd2+ {[%clk 0:00:19.3]} 0-1